fUSD/lending_fUSD_20240205
["ID","MTS","AMOUNT","RATE_DAILY","PERIOD"]
[313329897,1707161474536,-580.1,0.00046575,31]
[313329898,1707161474545,-727.02,0.00046575,31]
[313329899,1707161474554,-500.0,0.00046575,31]
[313329900,1707161474563,-648.1,0.00046575,31]
[313329901,1707161474572,-9649.71,0.00046575,31]
[313329902,1707161474582,-4246.7,0.00046575,31]
[313329903,1707161474591,-5144.37,0.00046575,31]
[313329904,1707161474600,-575.28,0.00046575,31]
[313329905,1707161474609,-531.93,0.00046575,31]
[313329906,1707161474619,-1687.02,0.00046575,31]
[313329907,1707161474629,-699.82,0.00046575,31]
[313329908,1707161474638,-828.59,0.00046575,31]
[313329909,1707161474648,-899.71,0.00046575,31]
[313329910,1707161474658,-701.7,0.00046575,31]
[313329911,1707161474667,-500.0,0.00046575,31]
[313329912,1707161474676,-500.0,0.00046575,31]
[313329913,1707161474686,-1300.69,0.00046575,31]
[313329914,1707161474695,-830.8,0.00046575,31]
[313329915,1707161474704,-530.48,0.00046575,31]
[313329916,1707161474713,-243.1665591,0.00046575,31]
[313329917,1707161474722,-500.0,0.00046575,31]
[313329918,1707161474732,-500.0,0.00046575,2]
[313329919,1707161474742,-1935.78,0.00046575,31]
[313329920,1707161474751,-2018.2,0.00046575,31]
[313329921,1707161474760,-792.37,0.00046575,31]
[313329922,1707161474770,-1268.7,0.00046575,31]
[313329923,1707161474779,-610.86,0.00046575,31]
[313329924,1707161474789,-500.0,0.00046575,31]
[313329925,1707161474798,-500.0,0.00046575,31]
[313329926,1707161474808,-522.98838659,0.00046575,31]
[313329927,1707161474817,-775.4,0.00046575,31]
[313329928,1707161474826,-650.59,0.00046575,31]
[313329929,1707161474836,-500.0,0.00046575,31]
[313329930,1707161474845,-1038.49,0.00046575,31]
[313329931,1707161474854,-917.32,0.00046575,31]
[313329932,1707161474864,-609.62,0.00046575,31]
[313329933,1707161474871,-670.92,0.00046575,31]
[313329934,1707161474880,-1314.85,0.00046575,5]
[313329935,1707161474890,-1809.16,0.00046575,31]
[313329936,1707161474900,-1573.94,0.00046575,31]
[313329937,1707161474909,-1499.56,0.00046575,31]
[313329938,1707161474918,-834.46,0.00046575,31]
[313329939,1707161474928,-1580.41,0.00046575,31]
[313329940,1707161474937,-500.0,0.00046575,31]
[313329941,1707161474946,-500.0,0.00046575,30]
[313329942,1707161474956,-500.0,0.00046575,31]
[313329943,1707161474965,-1788.86,0.00046575,31]
[313329944,1707161474974,-665.49,0.00046575,31]
[313329945,1707161474983,-500.0,0.00046575,2]
[313329946,1707161474993,-500.0,0.00046575,31]
[313329947,1707161475002,-500.0,0.00046575,31]
[313329948,1707161475012,-6953.52,0.00046575,31]
[313329949,1707161475022,-594.23,0.00046575,31]
[313329950,1707161475031,-500.0,0.00046575,31]
[313329951,1707161475041,-643.79,0.00046575,31]
[313329952,1707161475050,-1787.48,0.00046575,31]
[313329953,1707161475059,-626.24,0.00046575,31]
[313329954,1707161475068,-1058.6,0.00046575,5]
[313329955,1707161475077,-12499.48,0.00046575,31]
[313329956,1707161475087,-1008.11,0.00046575,31]
[313329957,1707161475099,-1000.0,0.00046584,30]
[313329958,1707161475108,-1000.0,0.00046584,30]
[313329959,1707161475118,-1000.0,0.00046584,30]
[313329960,1707161475127,-1000.0,0.00046584,30]
[313329961,1707161475136,-500.0,0.0004659,21]
[313329962,1707161475146,-500.0,0.0004659,30]
[313329963,1707161475155,-1124.63383169,0.00046631,5]
[313329964,1707161475164,-7077.0,0.00046633,30]
[313329965,1707161475175,-171.433406,0.00046752,30]
[313329966,1707161475184,-168.927798,0.00046752,30]
[313329967,1707161475193,-183.662556,0.00046752,30]
[313329968,1707161475202,-151.318632,0.00046752,30]
[313329969,1707161475211,-163.535146,0.00046752,30]
[313329970,1707161475220,-1054.95999,0.00046752,30]
[313329971,1707161475230,-375.553869,0.00046752,30]
[313329972,1707161475238,-404.523067,0.00046752,30]
[313329973,1707161475248,-554.119252,0.00046752,30]
[313329974,1707161475258,-1000.0,0.00046769,30]
[313329975,1707161475267,-455.0,0.000468,37]
[313329976,1707161475276,-1000.0,0.000468,19]
[313329977,1707161475286,-1000.0,0.00046815,30]
[313329978,1707161475295,-1000.0,0.00046815,30]
[313329979,1707161475304,-1000.0,0.00046815,30]
[313329980,1707161475314,-1000.0,0.00046815,30]
[313329981,1707161475323,-1000.0,0.0004684,30]
[313329982,1707161475332,-500.0,0.00046864,30]
[313329983,1707161475341,-299.999999,0.000469,30]
[313329984,1707161475350,-192.539303,0.00046905,30]
[313329985,1707161475360,-617.259203,0.00046905,30]
[313329986,1707161475369,-173.479083,0.00046905,30]
[313329987,1707161475378,-189.804193,0.00046905,30]
[313329988,1707161475387,-200.0,0.00046987,4]
[313329989,1707161475396,-200.0,0.00046987,8]
[313329990,1707161475406,-677.0,0.0004699,3]
[313329991,1707161475415,-534.0,0.0004699,3]
[313329992,1707161475424,-100000.0,0.00047,37]
[313329993,1707161475433,-190380.9507415,0.00047,3]
[313329994,1707161475442,-8726.0,0.00047,14]
[313329995,1707161475451,-11083.87,0.00047,4]
[313329996,1707161475460,-1000.0,0.00047,120]
[313329997,1707161475470,-2000.0,0.00047,2]
[313329998,1707161475479,-7000.0,0.00047,14]
[313329999,1707161475488,-860.59,0.00047,32]
[313330000,1707161475498,-6036.63097809,0.00047,10]
[313330001,1707161475507,-3609.7,0.00047,7]
[313330002,1707161475516,-8876.94,0.00047,7]
[313330003,1707161475526,-150.101,0.0004702,2]
[313330004,1707161475535,-183.29267009,0.0004702,2]
[313330005,1707161475648,-7077.0,0.00047114,30]
[313330006,1707161475657,-500.0,0.00047123,31]
[313330007,1707161475664,-500.0,0.00047123,31]
[313330008,1707161475672,-579.22,0.00047123,31]
[313330009,1707161475681,-500.0,0.00047123,31]
[313330010,1707161475690,-524.88,0.00047123,31]
[313330011,1707161475699,-907.38,0.00047123,31]
[313330012,1707161475708,-793.66,0.00047123,31]
[313330013,1707161475717,-828.69,0.00047123,2]
[313330014,1707161475726,-500.0,0.00047123,20]
[313330015,1707161475735,-760.42,0.00047123,31]
[313330016,1707161475744,-500.0,0.00047123,31]
[313330017,1707161475753,-500.0,0.00047123,31]
[313330018,1707161475763,-500.0,0.00047123,31]
[313330019,1707161475772,-500.0,0.00047123,2]
[313330020,1707161475781,-1171.91,0.00047123,31]
[313330021,1707161475791,-500.0,0.00047123,31]
[313330022,1707161475800,-1193.87,0.00047123,31]
[313330023,1707161475809,-579.7,0.00047123,31]
[313330024,1707161475818,-1047.76,0.00047123,31]
[313330025,1707161475828,-1000.0,0.00047123,31]
[313330026,1707161475836,-1195.13,0.00047123,31]
[313330027,1707161475845,-968.9,0.00047123,31]
[313330028,1707161475854,-500.0,0.00047123,31]
[313330029,1707161475863,-500.0,0.00047123,2]
[313330030,1707161475872,-323.19507537,0.00047123,31]
[313330031,1707161475881,-928.39,0.00047123,31]
[313330032,1707161475890,-898.8,0.00047123,31]
[313330033,1707161475899,-1227.72,0.00047123,31]
[313330034,1707161475908,-500.0,0.00047123,31]
[313330035,1707161475917,-961.96,0.00047123,31]
[313330036,1707161475926,-856.15,0.00047123,31]
[313330037,1707161475935,-500.0,0.00047123,31]
[313330038,1707161475945,-610.16,0.00047123,31]
[313330039,1707161475954,-500.0,0.00047123,31]
[313330040,1707161475964,-4208.35,0.00047123,31]
[313330041,1707161475973,-500.0,0.00047123,31]
[313330042,1707161475983,-500.0,0.00047123,31]
[313330043,1707161475992,-2424.94,0.00047123,31]
[313330044,1707161476003,-1147.57,0.00047123,31]
[313330045,1707161476012,-719.89,0.00047123,31]
[313330046,1707161476021,-872.38,0.00047123,31]
[313330047,1707161476031,-500.0,0.00047123,31]
[313330048,1707161476039,-566.54673841,0.00047123,31]
[313330049,1707161476049,-500.0,0.00047123,31]
[313330050,1707161476058,-3479.72,0.00047123,31]
[313330051,1707161476068,-524.2,0.00047123,31]
[313330052,1707161476077,-752.35,0.00047123,31]
[313330053,1707161476088,-500.0,0.00047123,31]
[313330054,1707161476098,-1792.12,0.00047123,7]
[313330055,1707161476108,-614.92,0.00047123,31]
[313330056,1707161476117,-689.61,0.00047123,31]
[313330057,1707161476127,-663.67,0.00047123,31]
[313330058,1707161476137,-1447.39,0.00047123,31]
[313330059,1707161476146,-500.0,0.00047123,31]
[313330060,1707161476157,-2445.56,0.00047123,31]
[313330061,1707161476167,-1389.3,0.00047123,31]
[313330062,1707161476176,-2095.64,0.00047123,31]
[313330063,1707161476186,-500.0,0.00047123,31]
[313330064,1707161476196,-1082.37,0.00047123,31]
[313330065,1707161476205,-2824.19,0.00047123,31]
[313330066,1707161476215,-903.41,0.00047123,31]
[313330067,1707161476225,-1032.35,0.00047123,31]
[313330068,1707161476234,-4354.94,0.00047123,31]
[313330069,1707161476245,-225.14013422,0.00047123,31]
[313330070,1707161476255,-668.9,0.00047123,31]
[313330071,1707161476264,-607.08,0.00047123,31]
[313330072,1707161476274,-996.39,0.00047123,31]
[313330073,1707161476283,-500.0,0.00047123,31]
[313330074,1707161476292,-500.0,0.00047123,31]
[313330075,1707161476302,-568.52,0.00047123,31]
[313330076,1707161476312,-500.0,0.00047123,31]
[313330077,1707161476321,-2415.07,0.00047123,31]
[313330078,1707161476330,-1484.19,0.00047123,31]
[313330079,1707161476339,-831.07,0.00047123,31]
[313330080,1707161476348,-543.21,0.00047123,31]
[313330081,1707161476357,-3180.88,0.00047123,31]
[313330082,1707161476366,-784.02,0.00047123,31]
[313330083,1707161476376,-1184.54,0.00047123,31]
[313330084,1707161476385,-500.0,0.00047123,31]
[313330085,1707161476395,-520.58,0.00047123,31]
[313330086,1707161476405,-1320.35,0.00047123,31]
[313330087,1707161476414,-500.0,0.00047123,31]
[313330088,1707161476426,-580.1,0.00047123,31]
[313330089,1707161476436,-727.02,0.00047123,31]
[313330090,1707161476445,-500.0,0.00047123,31]
[313330091,1707161476455,-648.1,0.00047123,31]
[313330092,1707161476464,-9649.71,0.00047123,31]
[313330093,1707161476473,-4246.7,0.00047123,31]
[313330094,1707161476482,-5144.37,0.00047123,31]
[313330095,1707161476491,-575.28,0.00047123,31]
[313330096,1707161476502,-531.93,0.00047123,31]
[313330097,1707161476511,-1687.02,0.00047123,31]
[313330098,1707161476520,-699.82,0.00047123,31]
[313330099,1707161476530,-828.59,0.00047123,31]
[313330100,1707161476539,-899.71,0.00047123,31]
[313330101,1707161476550,-701.7,0.00047123,31]
[313330102,1707161476559,-500.0,0.00047123,31]
[313330103,1707161476569,-500.0,0.00047123,31]
[313330104,1707161476578,-1300.69,0.00047123,31]
[313330105,1707161476588,-830.8,0.00047123,31]
[313330106,1707161476598,-530.48,0.00047123,31]
[313330107,1707161476607,-500.0,0.00047123,31]
[313330108,1707161476616,-500.0,0.00047123,2]
[313330109,1707161476626,-1935.78,0.00047123,31]
[313330110,1707161476635,-2018.2,0.00047123,31]
[313330111,1707161476644,-792.37,0.00047123,31]
[313330112,1707161476654,-1268.7,0.00047123,31]
[313330113,1707161476663,-610.86,0.00047123,31]
[313330114,1707161476673,-500.0,0.00047123,31]
[313330115,1707161476682,-500.0,0.00047123,31]
[313330116,1707161476691,-775.4,0.00047123,31]
[313330117,1707161476700,-650.59,0.00047123,31]
[313330118,1707161476710,-500.0,0.00047123,31]
[313330119,1707161476721,-1038.49,0.00047123,31]
[313330120,1707161476732,-917.32,0.00047123,31]
[313330121,1707161476742,-609.62,0.00047123,31]
[313330122,1707161476752,-670.92,0.00047123,31]
[313330123,1707161476763,-1314.85,0.00047123,5]
[313330124,1707161476774,-1809.16,0.00047123,31]
[313330125,1707161476785,-1573.94,0.00047123,31]
[313330126,1707161476794,-1499.56,0.00047123,31]
[313330127,1707161476803,-834.46,0.00047123,31]
[313330128,1707161476812,-1580.41,0.00047123,31]
[313330129,1707161476822,-500.0,0.00047123,31]
[313330130,1707161476831,-500.0,0.00047123,30]
[313330131,1707161476841,-500.0,0.00047123,31]
[313330132,1707161476850,-1788.86,0.00047123,31]
[313330133,1707161476859,-665.49,0.00047123,31]
[313330134,1707161476868,-500.0,0.00047123,2]
[313330135,1707161476877,-500.0,0.00047123,31]
[313330136,1707161476887,-500.0,0.00047123,31]
[313330137,1707161476896,-6953.52,0.00047123,31]
[313330138,1707161476905,-594.23,0.00047123,31]
[313330139,1707161476914,-500.0,0.00047123,31]
[313330140,1707161476923,-643.79,0.00047123,31]
[313330141,1707161476933,-1787.48,0.00047123,31]
[313330142,1707161476942,-626.24,0.00047123,31]
[313330143,1707161476951,-1058.6,0.00047123,5]
[313330144,1707161476960,-12499.48,0.00047123,31]
[313330145,1707161476969,-1008.11,0.00047123,31]
[313330146,1707161476979,-2001.22,0.00047135,2]
[313330147,1707161476988,-500.0,0.00047138,21]
[313330148,1707161476998,-500.0,0.00047138,30]
[313330149,1707161477008,-1000.0,0.000472,20]
[313330150,1707161477018,-455.0,0.000473,37]
[313330151,1707161477028,-50000.0,0.00047331,30]
[313330152,1707161477037,-500.0,0.00047397,65]
[313330153,1707161477046,-500.0,0.00047412,30]
[313330154,1707161477058,-331.82563408,0.00047464,7]
[313330155,1707161477068,-242.85775935,0.00047464,7]
[313330156,1707161477077,-29544.89473309,0.00047498,22]
[313330157,1707161477088,-728.0,0.000475,30]
[313330158,1707161477100,-2000.0,0.000475,32]
[313330159,1707161477110,-399.0,0.0004755,30]
[313330160,1707161477119,-1786.72,0.00047572,15]
[313330161,1707161477128,-7077.0,0.00047594,30]
[313330162,1707161477139,-2000.0,0.000476,7]
[313330163,1707161477150,-369.0,0.0004765,2]
[313330164,1707161477159,-500.0,0.00047671,31]
[313330165,1707161477169,-500.0,0.00047671,31]
[313330166,1707161477179,-579.22,0.00047671,31]
[313330167,1707161477189,-500.0,0.00047671,31]
[313330168,1707161477198,-524.88,0.00047671,31]
[313330169,1707161477208,-907.38,0.00047671,31]
[313330170,1707161477217,-793.66,0.00047671,31]
[313330171,1707161477225,-828.69,0.00047671,2]
[313330172,1707161477235,-500.0,0.00047671,20]
[313330173,1707161477245,-760.42,0.00047671,31]
[313330174,1707161477254,-500.0,0.00047671,31]
[313330175,1707161477264,-500.0,0.00047671,31]
[313330176,1707161477273,-500.0,0.00047671,31]
[313330177,1707161477282,-500.0,0.00047671,2]
[313330178,1707161477291,-1171.91,0.00047671,31]
[313330179,1707161477301,-500.0,0.00047671,31]
[313330180,1707161477311,-1193.87,0.00047671,31]
[313330181,1707161477320,-579.7,0.00047671,31]
[313330182,1707161477329,-1047.76,0.00047671,31]
[313330183,1707161477338,-1000.0,0.00047671,31]
[313330184,1707161477348,-1195.13,0.00047671,31]
[313330185,1707161477357,-968.9,0.00047671,31]
[313330186,1707161477367,-500.0,0.00047671,31]
[313330187,1707161477376,-500.0,0.00047671,2]
[313330188,1707161477386,-928.39,0.00047671,31]
[313330189,1707161477395,-898.8,0.00047671,31]
[313330190,1707161477405,-1227.72,0.00047671,31]
[313330191,1707161477414,-500.0,0.00047671,31]
[313330192,1707161477521,-961.96,0.00047671,31]
[313330193,1707161477531,-856.15,0.00047671,31]
[313330194,1707161477540,-500.0,0.00047671,31]
[313330195,1707161477550,-610.16,0.00047671,31]
[313330196,1707161477560,-500.0,0.00047671,31]
[313330197,1707161477569,-4208.35,0.00047671,31]
[313330198,1707161477579,-500.0,0.00047671,31]
[313330199,1707161477589,-500.0,0.00047671,31]
[313330200,1707161477599,-2424.94,0.00047671,31]
[313330201,1707161477609,-1147.57,0.00047671,31]
[313330202,1707161477619,-719.89,0.00047671,31]
[313330203,1707161477628,-872.38,0.00047671,31]
[313330204,1707161477638,-500.0,0.00047671,31]
[313330205,1707161477648,-500.0,0.00047671,31]
[313330206,1707161477657,-3479.72,0.00047671,31]
[313330207,1707161477668,-524.2,0.00047671,31]
[313330208,1707161477677,-752.35,0.00047671,31]
[313330209,1707161477687,-500.0,0.00047671,31]
[313330210,1707161477697,-1792.12,0.00047671,7]
[313330211,1707161477706,-614.92,0.00047671,31]
[313330212,1707161477717,-689.61,0.00047671,31]
[313330213,1707161477726,-663.67,0.00047671,31]
[313330214,1707161477735,-1447.39,0.00047671,31]
[313330215,1707161477746,-500.0,0.00047671,31]
[313330216,1707161477755,-1389.3,0.00047671,31]
[313330217,1707161477764,-2445.56,0.00047671,31]
[313330218,1707161477775,-2095.64,0.00047671,31]
[313330219,1707161477785,-500.0,0.00047671,31]
[313330220,1707161477794,-1082.37,0.00047671,31]
[313330221,1707161477804,-2824.19,0.00047671,31]
[313330222,1707161477814,-903.41,0.00047671,31]
[313330223,1707161477823,-1032.35,0.00047671,31]
[313330224,1707161477833,-4354.94,0.00047671,31]
[313330225,1707161477842,-668.9,0.00047671,31]
[313330226,1707161477852,-607.08,0.00047671,31]
[313330227,1707161477862,-996.39,0.00047671,31]
[313330228,1707161477871,-381.42747812,0.00047671,31]
[313330229,1707161477881,-500.0,0.00047671,31]
[313330230,1707161477891,-568.52,0.00047671,31]
[313330231,1707161477900,-500.0,0.00047671,31]
[313330232,1707161477910,-2415.07,0.00047671,31]
[313330233,1707161477919,-1484.19,0.00047671,31]
[313330234,1707161477928,-831.07,0.00047671,31]
[313330235,1707161477937,-543.21,0.00047671,31]
[313330236,1707161477947,-3180.88,0.00047671,31]
[313330237,1707161477956,-784.02,0.00047671,31]
[313330238,1707161477966,-1184.54,0.00047671,31]
[313330239,1707161477976,-500.0,0.00047671,31]
[313330240,1707161477988,-520.58,0.00047671,31]
[313330241,1707161477998,-1320.35,0.00047671,31]
[313330242,1707161478007,-500.0,0.00047671,31]
[313330243,1707161478016,-580.1,0.00047671,31]
[313330244,1707161478026,-727.02,0.00047671,31]
[313330245,1707161478035,-500.0,0.00047671,31]
[313330246,1707161478044,-648.1,0.00047671,31]
[313330247,1707161478054,-9649.71,0.00047671,31]
[313330248,1707161478063,-4246.7,0.00047671,31]
[313330249,1707161478073,-575.28,0.00047671,31]
[313330250,1707161478087,-5144.37,0.00047671,31]
[313330251,1707161478097,-531.93,0.00047671,31]
[313330252,1707161478107,-1687.02,0.00047671,31]
[313330253,1707161478116,-699.82,0.00047671,31]
[313330254,1707161478126,-828.59,0.00047671,31]
[313330255,1707161478136,-899.71,0.00047671,31]
[313330256,1707161478146,-701.7,0.00047671,31]
[313330257,1707161478156,-500.0,0.00047671,31]
[313330258,1707161478165,-500.0,0.00047671,31]
[313330259,1707161478176,-1300.69,0.00047671,31]
[313330260,1707161478186,-830.8,0.00047671,31]
[313330261,1707161478196,-530.48,0.00047671,31]
[313330262,1707161478206,-500.0,0.00047671,31]
[313330263,1707161478216,-500.0,0.00047671,2]
[313330264,1707161478226,-1935.78,0.00047671,31]
[313330265,1707161478235,-2018.2,0.00047671,31]
[313330266,1707161478246,-792.37,0.00047671,31]
[313330267,1707161478256,-1268.7,0.00047671,31]
[313330268,1707161478266,-610.86,0.00047671,31]
[313330269,1707161478275,-500.0,0.00047671,31]
[313330270,1707161478285,-500.0,0.00047671,31]
[313330271,1707161478295,-775.4,0.00047671,31]
[313330272,1707161478305,-650.59,0.00047671,31]
[313330273,1707161478314,-357.66682955,0.00047671,31]
[313330274,1707161478324,-1038.49,0.00047671,31]
[313330275,1707161478334,-917.32,0.00047671,31]
[313330276,1707161478344,-609.62,0.00047671,31]
[313330277,1707161478353,-670.92,0.00047671,31]
[313330278,1707161478363,-1314.85,0.00047671,5]
[313330279,1707161478373,-1809.16,0.00047671,31]
[313330280,1707161478383,-1573.94,0.00047671,31]
[313330281,1707161478393,-834.46,0.00047671,31]
[313330282,1707161478403,-1499.56,0.00047671,31]
[313330283,1707161478412,-1580.41,0.00047671,31]
[313330284,1707161478423,-500.0,0.00047671,31]
[313330285,1707161478433,-500.0,0.00047671,30]
[313330286,1707161478443,-500.0,0.00047671,31]
[313330287,1707161478453,-1788.86,0.00047671,31]
[313330288,1707161478463,-665.49,0.00047671,31]
[313330289,1707161478475,-500.0,0.00047671,2]
[313330290,1707161478485,-500.0,0.00047671,31]
[313330291,1707161478497,-500.0,0.00047671,31]
[313330292,1707161478507,-6953.52,0.00047671,31]
[313330293,1707161478516,-594.23,0.00047671,31]
[313330294,1707161478526,-500.0,0.00047671,31]
[313330295,1707161478536,-643.79,0.00047671,31]
[313330296,1707161478545,-1787.48,0.00047671,31]
[313330297,1707161478555,-626.24,0.00047671,31]
[313330298,1707161478565,-1058.6,0.00047671,5]
[313330299,1707161478575,-12499.48,0.00047671,31]
[313330300,1707161478585,-1008.11,0.00047671,31]
[313330301,1707161478594,-500.0,0.00047686,21]
[313330302,1707161478604,-357.48764911,0.00047686,30]
[313330303,1707161478614,-455.0,0.000478,38]
[313330304,1707161478623,-156.61,0.00047807,2]
[313330305,1707161478633,-346.85097176,0.00047808,120]
[313330306,1707161478642,-161.66,0.00047808,120]
[313330307,1707161478652,-158.0,0.00047821,90]
[313330308,1707161478662,-400.0,0.0004787,3]
[313330309,1707161478672,-20000.0,0.0004787,8]
[313330310,1707161478683,-1280.63136336,0.000479,30]
[313330311,1707161478693,-1736.557779,0.000479,22]
[313330312,1707161478703,-150.0,0.000479,22]
[313330313,1707161478713,-764.0520272,0.000479,30]
[313330314,1707161478722,-1505.0,0.000479,2]
[313330315,1707161478732,-2000.0,0.000479,2]
[313330316,1707161478741,-251.28681278,0.000479,2]
[313330317,1707161478755,-283.0389143,0.000479,2]
[313330318,1707161478765,-150.0,0.000479,19]
[313330319,1707161478775,-150.0,0.000479,19]
[313330320,1707161478785,-5882.49974745,0.000479,30]
[313330321,1707161478794,-650.0,0.00047945,120]
[313330322,1707161478804,-650.0,0.00047945,120]
[313330323,1707161478814,-650.0,0.00047945,120]
[313330324,1707161478823,-650.0,0.00047945,120]
[313330325,1707161478833,-650.0,0.00047945,120]
[313330326,1707161478842,-650.0,0.00047945,120]
[313330327,1707161478851,-650.0,0.00047945,120]
[313330328,1707161478861,-500.0,0.00047945,30]
[313330329,1707161478870,-150.25,0.00047945,2]
[313330330,1707161478879,-500.0,0.0004796,30]
[313330331,1707161478888,-200.0,0.00047987,5]
[313330332,1707161478898,-214.0,0.0004799,2]
[313330333,1707161478907,-169.0,0.0004799,2]
[313330334,1707161478916,-100000.0,0.00048,38]
[313330335,1707161478925,-409.48399457,0.00048,30]
[313330336,1707161478935,-800.0,0.00048,4]
[313330337,1707161478944,-500000.0,0.00048,14]
[313330338,1707161478953,-3018.77930198,0.00048,10]
[313330339,1707161478963,-450.11341318,0.00048,30]
[313330340,1707161478972,-2000.0,0.00048,2]
[313330341,1707161478982,-24465.59181856,0.00048,4]
[313330342,1707161478991,-3000.0,0.00048,30]
[313330343,1707161479001,-158.0,0.00048,90]
[313330344,1707161479010,-165.0,0.00048,90]
[313330345,1707161479019,-4023.16289277,0.00048,2]
[313330346,1707161479028,-1000.0,0.00048,22]
[313330347,1707161479038,-5241.96613711,0.00048,45]
[313330348,1707161479047,-12587.25473173,0.00048,45]
[313330349,1707161479056,-1000.0,0.00048014,30]
[313330350,1707161479065,-1000.0,0.00048014,30]
[313330351,1707161479073,-1395.96753263,0.00048014,30]
[313330352,1707161479083,-151.22241269,0.00048014,30]
[313330353,1707161479093,-1000.0,0.00048014,30]
[313330354,1707161479103,-346.85097176,0.00048055,120]
[313330355,1707161479113,-7077.0,0.00048075,30]
[313330356,1707161479122,-300.31716522,0.00048078,30]
[313330357,1707161479132,-161.66,0.00048137,120]
[313330358,1707161479142,-1124.63383169,0.0004821,5]
[313330359,1707161479151,-1000.0,0.00048213,30]
[313330360,1707161479160,-1471.08436366,0.00048213,30]
[313330361,1707161479169,-500.0,0.00048219,31]
[313330362,1707161479179,-418.16929353,0.00048219,31]
[313330363,1707161479189,-579.22,0.00048219,31]
[313330364,1707161479290,-500.0,0.00048219,31]
[313330365,1707161479300,-524.88,0.00048219,31]
[313330366,1707161479310,-907.38,0.00048219,31]
[313330367,1707161479319,-793.66,0.00048219,31]
[313330368,1707161479328,-828.69,0.00048219,2]
[313330369,1707161479337,-414.76,0.00048219,20]
[313330370,1707161479347,-760.42,0.00048219,31]
[313330371,1707161479356,-500.0,0.00048219,31]
[313330372,1707161479366,-500.0,0.00048219,31]
[313330373,1707161479376,-500.0,0.00048219,70]
[313330374,1707161479385,-500.0,0.00048219,31]
[313330375,1707161479394,-500.0,0.00048219,2]
[313330376,1707161479404,-1171.91,0.00048219,31]
[313330377,1707161479413,-500.0,0.00048219,31]
[313330378,1707161479422,-1193.87,0.00048219,31]
[313330379,1707161479431,-579.7,0.00048219,31]
[313330380,1707161479440,-1047.76,0.00048219,31]
[313330381,1707161479449,-828.11360074,0.00048219,31]
[313330382,1707161479459,-1195.13,0.00048219,31]
[313330383,1707161479468,-968.9,0.00048219,31]
[313330384,1707161479477,-500.0,0.00048219,31]
[313330385,1707161479486,-500.0,0.00048219,2]
[313330386,1707161479496,-928.39,0.00048219,31]
[313330387,1707161479505,-898.8,0.00048219,31]
[313330388,1707161479514,-1227.72,0.00048219,31]
[313330389,1707161479524,-500.0,0.00048219,31]
[313330390,1707161479533,-961.96,0.00048219,31]
[313330391,1707161479542,-856.15,0.00048219,31]
[313330392,1707161479551,-500.0,0.00048219,31]
[313330393,1707161479561,-610.16,0.00048219,31]
[313330394,1707161479571,-500.0,0.00048219,31]
[313330395,1707161479580,-4208.35,0.00048219,31]
[313330396,1707161479589,-500.0,0.00048219,31]